[Event "Karnataka State Open-ch 2018"]
[Site "Bengaluru"]
[Date "2018.04.16"]
[Round "5"]
[White "Isha, Sharma"]
[Black "Kalki Eshwar D"]
[Result "1-0"]
[ECO "B22"]
[WhiteElo "1926"]
[BlackElo "1515"]
[Annotator "NA RC"]
[PlyCount "111"]
[EventDate "2018.??.??"]
[EventType "swiss"]
[EventCountry "IND"]
[SourceTitle "playchess.com"]
[Source "ChessBase"]
[SourceQuality "1"]
[TimeControl "5400+30"]

1. e4 {[%emt 0:00:00]} c5 {[%emt 0:00:07]} 2. c3 {[%emt 0:00:00]} d5 {[%emt 0:00:05]} 3. exd5 {[%emt 0:00:00]} Nf6 {[%emt 0:00:08]} 4. d4 {[%emt 0:00:00]} Nxd5 {[%emt 0:00:08] B22: Sicilian: 2 c3} (4... cxd4 5. Bb5+ Bd7 6. Bc4 b5 7. Bb3 dxc3 8. Nxc3 g6 9. Nf3 Bg7 10. Ne5 O-O 11. O-O b4 12. Ne2 {1-0 (53) Pavasovic,D (2548)-Sunilduth Lyna,N (2541) chess.com INT 2017}) 5. Nf3 {[%emt 0:00:04]} e6 {[%emt 0:00:09]} 6. Be2 {[%emt 0:00:45]} cxd4 {[%emt 0:00:17]} 7. Nxd4 {[%emt 0:00:37]} Bd6 $146 {[%emt 0:00:58]} ({Predecessor:} 7... Be7 8. O-O O-O 9. Qb3 Qb6 10. Bf3 Rd8 11. Na3 Nc6 12. Qxb6 axb6 {1-0 (79) Kevorkov,A (2228)-Jaksland,T (2284) Denmark 2016}) 8. O-O {[%emt 0:00:17]} O-O {[%emt 0:00:09]} 9. Nd2 {[%emt 0:01:09]} Nd7 {[%emt 0:00:43]} 10. Ne4 {[%emt 0:03:38]} Bb8 {[%emt 0:01:01]} 11. c4 {[%emt 0:09:59]} N5f6 {[%emt 0:00:28]} 12. Ng3 {[%emt 0:01:30]} Nc5 {[%emt 0:07:21]} 13. Be3 {[%emt 0:01:34]} e5 {[%emt 0:05:54]} 14. Nc6 {[%emt 0:10:04]} Qxd1 {[%emt 0:05:13]} 15. Rfxd1 {[%emt 0:00:15]} Ncd7 {[%emt 0:00:35]} 16. Ne7+ {[%emt 0:03:18]} Kh8 {[%emt 0:00:09]} 17. Bf3 {[%emt 0:00:12]} e4 {[%emt 0:02:32]} 18. Nxe4 {[%emt 0:00:23]} Nxe4 {[%emt 0:00:25]} 19. Bxe4 {[%emt 0:03:46]} Nf6 {[%emt 0:03:14]} 20. Bf3 {[%emt 0:00:07]} Be5 {[%emt 0:00:27]} 21. Nxc8 {[%emt 0:03:19]} Raxc8 {[%emt 0:00:09]} 22. Bd4 {[%emt 0:00:35]} ({Resist} 22. Bxb7 $6 Rxc4 23. Bf3 Bxb2) ({Better is} 22. c5 $18) 22... Bb8 $2 {[%emt 0:01:26]} (22... Bxd4 $16 {is a better defense.} 23. Rxd4 b6) 23. b3 {[%emt 0:03:16]} ({Don't take} 23. Bxb7 Rxc4 24. Rac1 Rxc1 $18) 23... b6 {[%emt 0:00:12]} 24. Rd3 {[%emt 0:00:15]} Rfe8 {[%emt 0:03:43]} 25. Rad1 {[%emt 0:01:09]} Ne4 {[%emt 0:02:53]} (25... h6 $142 26. Bxf6 gxf6) 26. Bxe4 {[%emt 0:04:13]} Rxe4 {[%emt 0:00:04]} 27. Bc3 {[%emt 0:01:53]} Rce8 {[%emt 0:06:01]} 28. Rd8 {[%emt 0:02:17]} h6 {[%emt 0:01:01]} 29. R1d7 {[%emt 0:02:40]} Kg8 {[%emt 0:00:37]} 30. g3 {[%emt 0:00:33]} h5 {[%emt 0:03:28]} 31. Kg2 {[%emt 0:03:11]} a5 {[%emt 0:02:55]} 32. Rxe8+ {[%emt 0:00:37]} Rxe8 {[%emt 0:00:02]} 33. Rb7 {[%emt 0:00:05]} h4 {[%emt 0:00:31]} 34. Rxb6 {[%emt 0:00:24]} hxg3 {[%emt 0:00:04]} 35. hxg3 {[%emt 0:00:08]} Be5 $18 {[%emt 0:00:40]} 36. Bxa5 {[%emt 0:00:46]} Bd4 {[%emt 0:00:32]} 37. Rd6 {[%emt 0:00:11]} Bc5 {[%emt 0:00:04]} 38. Rd8 {[%emt 0:00:05]} Rxd8 {[%emt 0:00:06]} 39. Bxd8 {[%emt 0:00:04]} Bb4 {[%emt 0:00:11]} 40. Bb6 {[%emt 0:00:22]} Kf8 {[%emt 0:00:04]} 41. a4 {[%emt 0:00:04]} Ke7 {[%emt 0:00:12]} 42. a5 {[%emt 0:00:12]} Kd7 {[%emt 0:00:08]} 43. a6 {[%emt 0:00:02]} Kc6 {[%emt 0:00:08]} 44. a7 {[%emt 0:00:03]} Kb7 {[%emt 0:00:03]} 45. c5 {[%emt 0:00:06]} Ka8 {[%emt 0:00:18]} 46. c6 {[%emt 0:00:04]} Bd6 {[%emt 0:00:03]} 47. b4 {[%emt 0:00:21]} g5 {[%emt 0:00:08]} 48. b5 {[%emt 0:00:04]} g4 {[%emt 0:00:06]} 49. Bc5 {[%emt 0:00:03]} Bc7 {[%emt 0:00:41]} 50. b6 {[%emt 0:00:05]} Bxb6 {[%emt 0:00:11]} 51. Bxb6 {[%emt 0:00:04]} f5 {[%emt 0:00:04]} 52. c7 {[%emt 0:00:07]} Kb7 {[%emt 0:00:04]} 53. a8=Q+ {[%emt 0:00:07]} Kxb6 {[%emt 0:00:04]} 54. c8=Q {[%emt 0:00:14]} f4 {[%emt 0:00:03]} 55. Qab7+ {[%emt 0:00:07]} Ka5 {[%emt 0:00:03]} 56. Qca8# {[%emt 0:00:08]} 1-0

[Event "Karnataka State Open-ch 2018"]
[Site "Bengaluru"]
[Date "2018.04.16"]
[Round "5"]
[White "Sekhawat, Hussen"]
[Black "Bachalkar Sadanand"]
[Result "1-0"]
[ECO "A06"]
[WhiteElo "1915"]
[BlackElo "1471"]
[Annotator "NA RC"]
[PlyCount "73"]
[EventDate "2018.??.??"]
[EventType "swiss"]
[EventCountry "IND"]
[SourceTitle "playchess.com"]
[Source "ChessBase"]
[SourceQuality "1"]
[TimeControl "5400+30"]

1. Nf3 {[%emt 0:00:00]} d5 {[%emt 0:00:40]} 2. g3 {[%emt 0:00:00]} Nc6 {[%emt 0:01:15]} 3. Bg2 {[%emt 0:01:26]} e5 {[%emt 0:00:21]} 4. d3 {[%emt 0:00:16]} Nf6 {[%emt 0:02:44]} 5. a3 {[%emt 0:01:26] A07: Réti Opening: New York and Capablanca Systems} (5. O-O Be7 6. c4 O-O 7. cxd5 Nxd5 8. Nc3 Nb6 9. Be3 Re8 10. Rc1 Bf8 11. Na4 Nd4 12. Nc5 c6 13. Nb3 Nxb3 14. Qxb3 Be6 15. Qc2 Nd5 16. Bd2 f6 17. a3 a5 18. e4 Nc7 19. Be3 Nb5 20. Rfd1 {1-0 (36) Nakamura,H (2786)-Grigoriants,S (2576) chess.com INT 2017}) 5... Be7 {[%emt 0:00:34]} 6. b4 {[%emt 0:02:21]} a6 {[%emt 0:01:12]} 7. Bb2 $146 {[%emt 0:00:14]} ({Predecessor:} 7. O-O O-O 8. Bb2 Bd6 9. Nfd2 Be6 10. c4 Qd7 11. Nc3 Be7 12. cxd5 Nxd5 {1-0 (75) Evans Quek,D (2047)-Sabah Moslem,R Bled 2002}) 7... Bd6 {[%emt 0:02:00]} 8. O-O {[%emt 0:01:14]} Be6 {[%emt 0:00:45]} 9. Nbd2 {[%emt 0:02:22]} O-O {[%emt 0:00:34]} 10. c4 {[%emt 0:01:03]} dxc4 {[%emt 0:04:38]} 11. dxc4 {[%emt 0:03:43]} Nd7 {[%emt 0:01:35]} 12. h4 f6 13. Qc2 {[%emt 0:05:23]} Be7 {[%emt 0:03:40]} 14. Rfd1 {[%emt 0:01:01]} Qe8 15. Nf1 {[%emt 0:06:13]} Nd8 {[%emt 0:01:46]} 16. Ne3 {[%emt 0:00:42]} c6 {[%emt 0:04:19]} 17. Nf5 {[%emt 0:02:30]} g6 {[%emt 0:00:34]} 18. Nxe7+ {[%emt 0:07:45]} Qxe7 19. c5 {[%emt 0:00:36]} Nf7 {[%emt 0:02:01]} 20. Rd2 {[%emt 0:04:35]} Rad8 {[%emt 0:01:43]} 21. Rad1 {[%emt 0:05:39]} Nb8 22. e4 Rxd2 {[%emt 0:01:01]} 23. Rxd2 {[%emt 0:01:05]} Rd8 {[%emt 0:00:40]} 24. Bf1 Rxd2 {[%emt 0:00:36]} 25. Nxd2 {[%emt 0:02:42]} Nd7 {[%emt 0:09:53]} 26. Nc4 {[%emt 0:05:21]} Kg7 {[%emt 0:00:22]} 27. Kg2 g5 28. hxg5 {[%emt 0:01:38]} Nxg5 {[%emt 0:01:58]} 29. Nd6 {[%emt 0:12:15]} Nf8 {[%emt 0:04:03]} ({Don't blunder} 29... Nxc5 $2 30. bxc5 Bh3+ 31. Kg1 $18) 30. f4 {[%emt 0:03:56]} exf4 {[%emt 0:01:06]} (30... Nf7 $142) 31. gxf4 {[%emt 0:00:39]} Nf7 {[%emt 0:01:59]} 32. Qc3 {[%emt 0:09:50]} Nxd6 $2 {[%emt 0:01:38]} (32... Bd7 {is a better defense.}) 33. cxd6 {[%emt 0:00:21]} Qf7 {[%emt 0:00:19]} 34. f5 {[%emt 0:01:02]} Bd7 {[%emt 0:01:03]} (34... Bxf5 $142 35. exf5 Qd5+ 36. Qf3 Qd2+ 37. Qe2 Qg5+ 38. Kh2 Qf4+ 39. Kg1 Qxd6 40. Qg4+ Kf7 41. Bc4+ Ke8) 35. Qg3+ {[%emt 0:01:00]} Kh8 {[%emt 0:01:25] [#]} 36. Bc4 $1 {[%emt 0:00:50]} Qg7 {[%emt 0:00:24] [#]} 37. Bxf6 {[%emt 0:00:13]} 1-0

[Event "Karnataka State Open-ch 2018"]
[Site "Bengaluru"]
[Date "2018.04.16"]
[Round "5"]
[White "Hardik, Jha"]
[Black "Sanjana Raghunath"]
[Result "1-0"]
[ECO "D04"]
[WhiteElo "1882"]
[BlackElo "1472"]
[Annotator "NA"]
[PlyCount "121"]
[EventDate "2018.??.??"]
[EventType "swiss"]
[EventCountry "IND"]
[SourceTitle "playchess.com"]
[Source "ChessBase"]
[SourceQuality "1"]
[TimeControl "5400+30"]

{[%evp 27,104,-89,-51,-21,-29,-21,-46,-102,-61,-127,-22,-53,0,14,5,14,14,-108,-134,-245,-135,-103,91,80,90,27,34,0,5,-1,33,0,3,0,31,39,54,0,0,8,25,-10,-18,-2,0,0,97,-25,-18,-32,32767,32767,32767,32767,85,32767,32767,32767,32767,32767,32767,54,60,32,172,175,235,32767,104,0,0,0,318,320,318,316,636,690,29987]} 1. Nf3 {[%emt 0:00:00]} d5 {[%emt 0:00:30]} 2. d4 {[%emt 0:00:01]} Nf6 {[%emt 0:00:18]} 3. e3 {[%emt 0:01:58]} Bg4 {[%emt 0:03:50]} 4. Bd3 {[%emt 0:03:35]} Nc6 {[%emt 0:00:44]} 5. c3 {[%emt 0:00:21] D02: 1 d4 d5 2 Nf3 sidelines, including 2...Nf6 3 g3 and 2...Nf6 3 Bf4} (5. O-O e6 6. b3 Bd6 7. Bb2 O-O 8. Nbd2 Re8 9. a3 {1-0 (9) Bacrot,E (2718)-Szakolczai,P (2275) Nancy 2011}) 5... e6 {[%emt 0:04:12]} 6. Nbd2 {[%emt 0:00:21]} Bd6 {[%emt 0:01:17]} 7. h3 {[%emt 0:09:56]} Bh5 {[%emt 0:00:22]} 8. Qb3 {[%emt 0:04:23]} Rb8 {[%emt 0:02:59]} 9. Qa4 $146 {[%emt 0:04:53]} ({Find the theoretical novelty and annotate with similar games:} 9. Qc2 Bg6 10. e4 dxe4 11. Nxe4 Nxe4 12. Bxe4 O-O 13. Be3 a5 14. h4 e5 15. O-O-O Bxe4 16. Qxe4 exd4 17. Bxd4 Nxd4 18. Rxd4 Qf6 {½-½ (18) Wittkugel,F-Ellinger,H (2290) Ellwangen 1999}) 9... O-O {[%emt 0:00:51]} 10. O-O {[%emt 0:00:33]} Qd7 {[%emt 0:02:13]} 11. Qc2 {[%emt 0:06:46]} Rfe8 {[%emt 0:03:22]} 12. Ng5 {[%emt 0:07:43]} h6 {[%emt 0:02:19]} 13. Ngf3 {[%emt 0:01:16]} e5 {[%emt 0:01:06]} 14. Bf5 {[%emt 0:07:58]} Qd8 {[%emt 0:00:33]} 15. dxe5 {[%emt 0:03:59]} Nxe5 {[%emt 0:03:21]} 16. Nxe5 {[%emt 0:00:13]} Rxe5 {[%emt 0:00:21]} 17. Re1 {[%emt 0:06:07]} (17. b4 $1 $11 {keeps the balance.}) 17... Qe8 {[%emt 0:00:56]} 18. b3 {[%emt 0:08:19]} c5 {[%emt 0:04:02]} (18... Ne4 $17 19. Bxe4 dxe4) 19. Bb2 {[%emt 0:01:28]} Re7 {[%emt 0:01:40]} 20. c4 {[%emt 0:01:16]} d4 {[%emt 0:01:35]} 21. Nf1 {[%emt 0:01:30]} Rd8 {[%emt 0:03:47]} (21... Bf4 $5) 22. g4 {[%emt 0:03:00]} (22. Qb1 $11 {remains equal.}) 22... Bg6 {[%emt 0:00:06]} 23. Red1 {[%emt 0:02:43] [#]} (23. Rad1 $17 {was called for.}) 23... Bxf5 {[%emt 0:02:57]} ({Worse is} 23... dxe3 24. Nxe3 Bxf5 25. Qxf5 $11 Rxe3 26. fxe3 $11) (23... Ne4 $1 $19 24. Bxg6 fxg6 25. exd4 Ng5) 24. Qxf5 {[%emt 0:00:08]} Red7 $2 {[%emt 0:03:04]} (24... Be5 $17 25. exd4 cxd4) 25. exd4 {[%emt 0:02:50]} cxd4 {[%emt 0:01:05]} 26. Re1 {[%emt 0:01:08]} ({Much weaker is} 26. Bxd4 Bb4 $11) 26... Be7 {[%emt 0:01:02]} 27. Rad1 {[%emt 0:03:03]} Qf8 {[%emt 0:00:46]} 28. Rd3 {[%emt 0:01:29]} Bc5 {[%emt 0:02:10]} 29. Re5 {[%emt 0:02:46]} Bd6 {[%emt 0:01:39]} 30. Re1 {[%emt 0:01:54]} Bc5 {[%emt 0:00:50]} 31. Ng3 {[%emt 0:01:03]} b6 {[%emt 0:04:38]} 32. g5 {[%emt 0:01:34]} ({Better is} 32. Qf3 $14) 32... hxg5 {[%emt 0:01:33]} 33. Qxg5 {[%emt 0:00:03]} Re8 {[%emt 0:04:34]} 34. Rxe8 {[%emt 0:01:45]} Qxe8 {[%emt 0:00:08]} 35. Nf5 {[%emt 0:01:16]} Qe1+ {[%emt 0:02:04]} 36. Kg2 {[%emt 0:00:38]} Ne8 {[%emt 0:00:59]} 37. Rf3 {[%emt 0:01:55]} (37. Qg4 $16 Rd8 38. Bxd4 Bxd4 39. Rxd4 Rxd4 40. Qxd4 (40. Nxd4 Nf6 $16)) 37... Qe4 {[%emt 0:01:09]} 38. a3 {[%emt 0:02:43]} Be7 {[%emt 0:01:56]} 39. Nxe7+ {[%emt 0:00:30]} Rxe7 {[%emt 0:00:31]} 40. Bxd4 {[%emt 0:00:15]} f6 {[%emt 0:03:44]} (40... Rd7 $1 $11 {remains equal.} 41. Bb2 Rd3) 41. Qf4 {[%emt 0:00:45]} Qb1 {[%emt 0:00:26]} 42. Qf5 {[%emt 0:01:38]} Qc1 {[%emt 0:01:04]} 43. Qd5+ {[%emt 0:01:38]} Kf8 {[%emt 0:00:20] [#]} 44. Be3 $2 {[%emt 0:01:14]} (44. c5 $1 $18 {[%cal Rc5b6]} Qxa3 45. Qc4 (45. cxb6 axb6 46. Bxb6 Qd6 $16)) 44... Qxa3 {[%emt 0:00:54]} 45. c5 {[%emt 0:00:17]} Qa5 {[%emt 0:00:42] [#]} (45... Nc7 $1 $14 46. Qd3 Ne6) 46. Qc4 $1 {[%emt 0:00:39]} Rc7 {[%emt 0:01:14]} (46... Nc7 $142 47. Bf4 Qxc5) 47. b4 {[%emt 0:00:11]} Qa4 {[%emt 0:01:15]} 48. Bf4 {[%emt 0:00:48]} (48. Rf4 $16) 48... Rxc5 $1 {[%emt 0:00:47]} 49. Qe6 {[%emt 0:01:21]} Rc6 $2 {[%emt 0:00:16]} (49... Rc2 $11) 50. Qd7 {[%emt 0:00:20]} Qc2 {[%emt 0:00:42]} 51. Re3 {[%emt 0:00:22]} Qg6+ $2 {[%emt 0:00:58]} (51... Rc8 52. Rxe8+ (52. Qxa7 Qc6+ 53. Kg1 Nc7 $14) 52... Rxe8) 52. Kh2 {[%emt 0:00:46]} Rc4 {[%emt 0:01:08]} 53. Rxe8+ {[%emt 0:00:15]} Qxe8 {[%emt 0:00:17]} 54. Bd6+ {[%emt 0:00:01]} Kg8 {[%emt 0:00:06]} 55. Qxe8+ {[%emt 0:00:03]} Kh7 {[%emt 0:00:03]} 56. Qh5+ {[%emt 0:00:28]} Kg8 {[%emt 0:00:02]} 57. Qd5+ {[%emt 0:00:01]} Kh7 {[%emt 0:00:09]} 58. Qxc4 {[%emt 0:00:07]} Kh8 {[%emt 0:00:15]} 59. Qf7 {[%emt 0:00:05]} b5 {[%emt 0:00:11]} 60. Bf8 {[%emt 0:00:05]} a5 {[%emt 0:00:04]} 61. Qxg7# {[%emt 0:00:10]} 1-0

[Event "Karnataka State Open-ch 2018"]
[Site "Bengaluru"]
[Date "2018.04.16"]
[Round "5"]
[White "Thirunarayanan Sampath Kumar"]
[Black "Gahan, M G"]
[Result "0-1"]
[ECO "B43"]
[WhiteElo "1729"]
[BlackElo "2281"]
[Annotator "ChessBase"]
[PlyCount "88"]
[EventDate "2018.??.??"]
[EventType "swiss"]
[EventCountry "IND"]
[SourceTitle "playchess.com"]
[Source "ChessBase"]
[SourceQuality "1"]
[TimeControl "5400+30"]

1. e4 {[%emt 0:00:00]} c5 {[%emt 0:11:43]} 2. Nf3 {[%emt 0:00:00]} e6 {[%emt 0:00:04]} 3. d4 {[%emt 0:00:02]} cxd4 {[%emt 0:00:05]} 4. Nxd4 {[%emt 0:00:07]} a6 {[%emt 0:00:02]} 5. Nc3 {[%emt 0:00:25]} Qc7 {[%emt 0:00:09]} 6. a3 {[%emt 0:10:08]} b5 {[%emt 0:00:12]} 7. Be3 {[%emt 0:18:24]} Bb7 {[%emt 0:00:21]} 8. f3 {[%emt 0:05:52]} Nf6 {[%emt 0:00:38]} 9. g4 {[%emt 0:05:07]} h6 {[%emt 0:01:46]} 10. Qe2 {[%emt 0:08:17]} d5 {[%emt 0:03:33]} 11. exd5 {[%emt 0:04:43]} Nxd5 {[%emt 0:01:00]} 12. Nxd5 {[%emt 0:03:16]} Bxd5 {[%emt 0:00:10]} 13. O-O-O {[%emt 0:02:05]} Nc6 {[%emt 0:08:05]} 14. Rg1 {[%emt 0:06:45]} Rd8 {[%emt 0:05:29]} 15. Qf2 {[%emt 0:04:21]} Nxd4 {[%emt 0:02:08]} 16. Bxd4 {[%emt 0:00:28]} Qf4+ {[%emt 0:01:01]} 17. Be3 {[%emt 0:04:00]} Qxf3 {[%emt 0:01:15]} 18. Qe1 {[%emt 0:01:09]} Qf6 {[%emt 0:02:40]} 19. Qa5 {[%emt 0:04:52]} Be7 {[%emt 0:01:06]} 20. Bd3 {[%emt 0:04:28]} Qe5 {[%emt 0:01:47]} 21. Rde1 {[%emt 0:02:38]} Qxh2 {[%emt 0:02:24]} 22. Qxa6 {[%emt 0:01:47]} O-O {[%emt 0:00:50]} 23. Qa7 {[%emt 0:05:18]} Qd6 {[%emt 0:07:31]} 24. Qd4 {[%emt 0:00:36]} Bf6 {[%emt 0:03:27]} 25. Qc5 {[%emt 0:00:29]} Qe5 {[%emt 0:00:55]} 26. Qb4 {[%emt 0:00:24]} Bc4 {[%emt 0:02:59]} 27. Bc5 {[%emt 0:03:54]} Qg5+ {[%emt 0:01:08]} 28. Kb1 {[%emt 0:01:37]} Rfe8 {[%emt 0:00:12]} 29. Be4 {[%emt 0:00:22]} Bd4 {[%emt 0:04:01]} 30. Bxd4 {[%emt 0:00:30]} Rxd4 {[%emt 0:00:05]} 31. Qc3 {[%emt 0:00:37]} Qc5 {[%emt 0:02:49]} 32. Qg3 {[%emt 0:00:28]} Qd6 {[%emt 0:01:57]} 33. Qf3 {[%emt 0:00:16]} Bd5 {[%emt 0:02:41]} 34. g5 {[%emt 0:01:59]} hxg5 {[%emt 0:02:58]} 35. Rxg5 {[%emt 0:01:09]} Bxe4 {[%emt 0:03:39]} 36. Rxe4 {[%emt 0:00:04]} Rxe4 {[%emt 0:02:18]} 37. Qxe4 {[%emt 0:00:01]} e5 {[%emt 0:00:35]} 38. Qh4 {[%emt 0:00:35]} Qf6 {[%emt 0:00:27]} 39. Qg4 {[%emt 0:01:05]} Qf1+ {[%emt 0:00:54]} 40. Ka2 {[%emt 0:00:06]} Qc4+ {[%emt 0:00:04]} 41. Qxc4 {[%emt 0:00:10]} bxc4 {[%emt 0:00:04]} 42. Kb1 {[%emt 0:00:28]} f6 {[%emt 0:01:01]} 43. Rg3 {[%emt 0:00:30]} e4 {[%emt 0:00:31]} 44. b4 {[%emt 0:00:17]} e3 {[%emt 0:00:53]} 0-1

[Event "Karnataka State Open-ch 2018"]
[Site "Bengaluru"]
[Date "2018.04.16"]
[Round "5"]
[White "Keshav Kothari"]
[Black "Yashas, D."]
[Result "0-1"]
[ECO "A61"]
[WhiteElo "1715"]
[BlackElo "2243"]
[Annotator "NA"]
[PlyCount "104"]
[EventDate "2018.??.??"]
[EventType "swiss"]
[EventCountry "IND"]
[SourceTitle "playchess.com"]
[Source "ChessBase"]
[SourceQuality "1"]
[TimeControl "5400+30"]

{[%evp 30,90,149,143,151,143,142,138,137,136,154,128,164,140,152,141,124,41,65,29,70,40,45,49,54,-17,0,0,0,0,0,-35,0,-70,-46,-66,-75,-79,-62,-69,-48,-103,-45,-56,-25,-37,-24,-163,-173,-167,-184,-240,-177,-368,-387,-695,-559,-29976,-29976,-12841,-29980,-29978,-29977]} 1. d4 {[%emt 0:00:00]} Nf6 {[%emt 0:00:09]} 2. Nf3 {[%emt 0:00:00]} e6 {[%emt 0:00:08]} 3. c4 {[%emt 0:00:19]} c5 {[%emt 0:00:25]} 4. d5 {[%emt 0:00:13]} exd5 {[%emt 0:00:08]} 5. cxd5 {[%emt 0:00:04]} d6 {[%emt 0:00:17]} 6. Nc3 {[%emt 0:00:09]} g6 {[%emt 0:00:43]} 7. Bf4 {[%emt 0:01:19]} a6 {[%emt 0:00:46]} 8. a4 {[%emt 0:00:14]} Bg7 {[%emt 0:00:08]} 9. h3 {[%emt 0:00:25]} O-O {[%emt 0:00:21]} 10. e3 {[%emt 0:00:30]} Qe7 {[%emt 0:00:19] A61: Modern Benoni: Nf3 without early e4} 11. Be2 {[%emt 0:00:23]} Nbd7 {[%emt 0:00:55]} 12. O-O {[%emt 0:00:25]} Rb8 {[%emt 0:07:35]} 13. Nd2 {[%emt 0:11:45]} Ne5 {[%emt 0:03:45]} 14. Bh2 {[%emt 0:04:29]} Re8 {[%emt 0:02:23]} 15. Kh1 {[%emt 0:05:07] [#]} b6 $146 {[%emt 0:40:45]} ({Predecessor:} 15... g5 16. f4 gxf4 17. exf4 Ng6 18. f5 {1-0 (46) Dothan,Y (2648)-Privara,I (2522) ICCF email 2010}) 16. f4 {[%emt 0:07:14]} Ned7 {[%emt 0:00:02]} 17. e4 $1 {[%emt 0:00:08]} Bb7 {[%emt 0:03:09]} 18. Bd3 {[%emt 0:09:28]} Nh5 {[%emt 0:08:10]} 19. Qf3 {[%emt 0:30:52]} Bd4 {[%emt 0:05:35]} 20. Rae1 {[%emt 0:14:23]} Qf8 {[%emt 0:10:19]} 21. Re2 {[%emt 0:05:38]} Ng7 {[%emt 0:03:42]} 22. Rfe1 {[%emt 0:01:33]} f6 {[%emt 0:02:47]} 23. Bg1 {[%emt 0:01:03]} (23. Nc4 $16) 23... f5 {[%emt 0:02:48]} 24. exf5 {[%emt 0:01:47]} gxf5 {[%emt 0:00:14]} 25. Rxe8 {[%emt 0:00:49]} Rxe8 {[%emt 0:00:02]} 26. Rxe8 {[%emt 0:01:16]} Qxe8 {[%emt 0:01:01]} 27. Qe2 {[%emt 0:02:32]} (27. Nc4 $14) 27... Qxe2 {[%emt 0:02:18]} 28. Nxe2 {[%emt 0:00:55]} Bxg1 {[%emt 0:02:18]} 29. Kxg1 {[%emt 0:00:09]} Bxd5 {[%emt 0:00:47]} 30. Bxa6 {[%emt 0:00:05]} Bc6 {[%emt 0:00:29]} 31. Bb5 {[%emt 0:01:39]} ({White should play} 31. Nc3 $11) 31... Bxb5 {[%emt 0:00:06]} 32. axb5 {[%emt 0:00:03]} Kf7 $1 {[%emt 0:00:18]} 33. Kf2 {[%emt 0:00:43]} d5 {[%emt 0:00:26]} 34. g4 {[%emt 0:00:45]} Ke6 {[%emt 0:01:15]} 35. Kf3 {[%emt 0:00:15]} ({White should try} 35. Ng3 $15) 35... Nf6 {[%emt 0:00:49]} 36. Ng3 {[%emt 0:00:41]} h5 {[%emt 0:00:33]} 37. gxh5 {[%emt 0:00:30]} Ngxh5 {[%emt 0:00:10]} 38. Ndf1 {[%emt 0:00:05] [#]} (38. Nxh5 $11 {and White stays safe.} Nxh5 39. Nf1) 38... Nxg3 $1 {[%emt 0:00:25]} 39. Nxg3 {[%emt 0:00:03] [#]} Ne4 $1 {[%emt 0:00:09]} 40. Ne2 {[%emt 0:01:19]} d4 {[%emt 0:00:50]} 41. Nc1 {[%emt 0:00:40]} (41. h4 {is the only way for White.}) 41... c4 {[%emt 0:01:02]} 42. Ke2 $2 {[%emt 0:00:30]} (42. h4 Nd6 43. Ne2 Nxb5 44. h5) 42... Kd5 {[%emt 0:00:51]} (42... d3+ $142 43. Kd1 Kd5) 43. h4 {[%emt 0:00:23]} d3+ {[%emt 0:00:28]} 44. Nxd3 {[%emt 0:00:25]} cxd3+ {[%emt 0:00:34]} 45. Kxd3 {[%emt 0:00:04]} Nf2+ {[%emt 0:01:01]} 46. Ke2 {[%emt 0:00:45]} Ng4 {[%emt 0:00:48]} 47. Kd3 {[%emt 0:00:04]} Nf6 {[%emt 0:00:17]} 48. b3 {[%emt 0:00:52]} Nh5 {[%emt 0:00:10]} 49. Ke3 {[%emt 0:00:06]} Kc5 {[%emt 0:00:04]} 50. b4+ {[%emt 0:00:23]} Kc4 {[%emt 0:00:09]} 51. Kf3 {[%emt 0:00:21]} Kxb4 {[%emt 0:00:06]} 52. Ke3 {[%emt 0:00:04]} Kc4 {[%emt 0:00:04] Kd4+} 0-1

[Event "Karnataka State Open-ch 2018"]
[Site "Bengaluru"]
[Date "2018.04.16"]
[Round "5"]
[White "Ramachandra, Bhat"]
[Black "Arvind, Shastry"]
[Result "0-1"]
[ECO "B13"]
[WhiteElo "1661"]
[BlackElo "2175"]
[Annotator "ChessBase"]
[PlyCount "104"]
[EventDate "2018.??.??"]
[EventType "swiss"]
[EventCountry "IND"]
[SourceTitle "playchess.com"]
[Source "ChessBase"]
[SourceQuality "1"]
[TimeControl "5400+30"]

1. e4 {[%emt 0:00:00]} c6 {[%emt 0:00:11]} 2. d4 {[%emt 0:00:00]} d5 {[%emt 0:00:05]} 3. exd5 {[%emt 0:00:10]} cxd5 {[%emt 0:00:06]} 4. Bd3 {[%emt 0:00:23]} Nc6 {[%emt 0:00:39]} 5. c3 {[%emt 0:00:29]} Nf6 {[%emt 0:03:20]} 6. Ne2 {[%emt 0:02:29]} Bg4 {[%emt 0:02:46]} 7. f3 {[%emt 0:00:19]} Bh5 {[%emt 0:00:19]} 8. Qb3 {[%emt 0:01:52]} Qd7 {[%emt 0:01:03]} 9. Bg5 {[%emt 0:03:59]} e6 {[%emt 0:01:10]} 10. Nd2 {[%emt 0:01:30]} Bg6 {[%emt 0:00:36]} 11. Bxg6 {[%emt 0:00:51]} hxg6 {[%emt 0:00:18]} 12. O-O-O {[%emt 0:03:02]} O-O-O {[%emt 0:09:14]} 13. Kb1 {[%emt 0:06:08]} Kb8 {[%emt 0:02:22]} 14. h3 {[%emt 0:11:16]} Rc8 {[%emt 0:04:27]} 15. Bf4+ {[%emt 0:07:07]} Bd6 {[%emt 0:04:22]} 16. Bxd6+ {[%emt 0:00:04]} Qxd6 {[%emt 0:00:03]} 17. Nc1 {[%emt 0:01:02]} Nh5 {[%emt 0:08:01]} 18. Nd3 {[%emt 0:03:49]} Nf4 {[%emt 0:00:57]} 19. Nxf4 {[%emt 0:01:03]} Qxf4 {[%emt 0:00:11]} 20. Qb5 {[%emt 0:01:44]} Ka8 {[%emt 0:10:43]} 21. Rhe1 {[%emt 0:03:03]} Qf5+ {[%emt 0:03:25]} 22. Ka1 {[%emt 0:00:19]} Qc2 {[%emt 0:00:54]} 23. Qb3 {[%emt 0:00:09]} Qxb3 {[%emt 0:03:52]} 24. Nxb3 {[%emt 0:02:25]} Kb8 {[%emt 0:02:51]} 25. Kb1 {[%emt 0:00:47]} Kc7 {[%emt 0:00:58]} 26. Nc5 {[%emt 0:01:49]} b6 {[%emt 0:00:05]} 27. Nd3 {[%emt 0:00:11]} Kd6 {[%emt 0:00:09]} 28. Ne5 {[%emt 0:03:58]} Nxe5 {[%emt 0:00:33]} 29. Rxe5 {[%emt 0:00:24]} b5 {[%emt 0:00:59]} 30. a3 {[%emt 0:01:57]} a5 {[%emt 0:10:55]} 31. Kc2 {[%emt 0:12:35]} Rc4 {[%emt 0:02:15]} 32. Re3 {[%emt 0:14:04]} Rhc8 {[%emt 0:01:34]} 33. Rd2 {[%emt 0:02:53]} b4 {[%emt 0:02:25]} 34. axb4 {[%emt 0:00:06]} axb4 {[%emt 0:00:01]} 35. Kb3 {[%emt 0:00:54]} Rb8 {[%emt 0:01:52]} 36. Kc2 {[%emt 0:00:32]} Rbc8 {[%emt 0:02:05]} 37. Kb3 {[%emt 0:00:42]} Ra8 {[%emt 0:00:21]} 38. f4 {[%emt 0:01:51]} bxc3 {[%emt 0:02:20]} 39. Rxc3 {[%emt 0:00:40]} Rxc3+ {[%emt 0:00:46]} 40. Kxc3 {[%emt 0:00:13]} Ra1 {[%emt 0:00:11]} 41. Kd3 {[%emt 0:00:37]} Rf1 {[%emt 0:01:42]} 42. Ke3 {[%emt 0:00:20]} f6 {[%emt 0:02:36]} 43. Rf2 {[%emt 0:03:20]} Rxf2 {[%emt 0:01:30]} 44. Kxf2 {[%emt 0:00:01]} Kc6 {[%emt 0:00:01]} 45. Ke3 {[%emt 0:00:16]} Kb5 {[%emt 0:00:03]} 46. Kd3 {[%emt 0:00:03]} Kb4 {[%emt 0:00:01]} 47. Kc2 {[%emt 0:01:44]} Kc4 {[%emt 0:00:08]} 48. b3+ {[%emt 0:00:26]} Kxd4 {[%emt 0:00:06]} 49. Kd2 {[%emt 0:00:22]} e5 {[%emt 0:00:08]} 50. g3 {[%emt 0:00:57]} e4 {[%emt 0:00:19]} 51. g4 {[%emt 0:00:20]} f5 {[%emt 0:00:05]} 52. g5 {[%emt 0:00:18]} Kc5 {[%emt 0:00:06]} 0-1